fUSD/lending_fUSD_20260203
["ID","MTS","AMOUNT","RATE_DAILY","PERIOD"]
[404432646,1770136247766,-242.15909246,0.00017998,5]
[404432647,1770136247775,-251.11897888,0.00017998,5]
[404432648,1770136247784,-260.4103811,0.00017998,5]
[404432649,1770136247793,-270.0455652,0.00017998,5]
[404432650,1770136247802,-280.03725112,0.00017998,5]
[404432651,1770136247812,-500.0,0.00017998,5]
[404432652,1770136247821,-290.39862941,0.00017998,5]
[404432653,1770136247830,-500.0,0.00017998,5]
[404432654,1770136247839,-500.0,0.00017998,5]
[404432655,1770136247848,-301.1433787,0.00017998,5]
[404432656,1770136247858,-500.0,0.00017998,5]
[404432657,1770136247867,-500.0,0.00017998,5]
[404432658,1770136247876,-500.0,0.00017998,5]
[404432659,1770136247886,-500.0,0.00017998,5]
[404432660,1770136247895,-500.0,0.00017998,5]
[404432661,1770136247904,-500.0,0.00017998,5]
[404432662,1770136247913,-500.0,0.00017998,5]
[404432663,1770136247923,-209.40437684,0.00017998,5]
[404432664,1770136247932,-500.0,0.00017998,5]
[404432665,1770136247942,-209.40437685,0.00017998,5]
[404432666,1770136247951,-200.0,0.00017998,5]
[404432667,1770136247960,-200.0,0.00017998,5]
[404432668,1770136247972,-200.0,0.00017998,5]
[404432669,1770136247981,-200.0,0.00017998,5]
[404432670,1770136247991,-200.0,0.00017998,5]
[404432671,1770136248000,-200.0,0.00017998,5]
[404432672,1770136248009,-200.0,0.00017998,5]
[404432673,1770136248018,-200.0,0.00017998,5]
[404432674,1770136248028,-200.0,0.00017998,5]
[404432675,1770136248038,-200.0,0.00017998,5]
[404432676,1770136248047,-200.0,0.00017998,5]
[404432677,1770136248056,-200.0,0.00017998,5]
[404432678,1770136248065,-200.0,0.00017998,5]
[404432679,1770136248074,-200.0,0.00017998,5]
[404432680,1770136248083,-200.0,0.00017998,5]
[404432681,1770136248093,-180.0,0.00017999,2]
[404432682,1770136248103,-300.0,0.00017999,2]
[404432683,1770136248113,-300.0,0.00017999,2]
[404432684,1770136248122,-300.0,0.00017999,2]
[404432685,1770136248131,-666.0,0.00017999,2]
[404432686,1770136248141,-4075192.06531484,0.00018,2]
[404432687,1770136248764,-371.13,0.00011099,2]
[404432688,1770136248883,-3363.60325525,0.00011099,2]
[404432689,1770136248894,-4082.42226098,0.00011099,2]
[404432690,1770136248906,-156.09724662,0.00011099,2]
[404432691,1770136248915,-5092.59432533,0.00014968,2]
[404432692,1770136248934,-305.89959904,0.00014968,2]
[404432693,1770136248952,-2310.0,0.00014968,2]
[404432694,1770136249037,-365.8029055,0.00014968,2]
[404432695,1770136249049,-3660.89327765,0.00014968,2]
[404432748,1770136281100,-26066.75336812,0.00014968,2]
[404432749,1770136281111,-2346510.06824883,0.00018,2]
[404432750,1770136281433,-15471.03124681,0.00018,2]
[404432751,1770136281448,-38500.0,0.00018,2]
[404432753,1770136368276,-6019.33743333,7.996e-05,2]
[404432754,1770136368319,-10000.01,7.996e-05,2]
[404432755,1770136368447,-10000.01,7.996e-05,2]
[404432756,1770136368597,-10000.01,7.996e-05,2]
[404432757,1770136368798,-10000.01,7.996e-05,2]
[404432758,1770136368960,-10000.01,7.996e-05,2]
[404432759,1770136373610,-10000.01,7.996e-05,2]
[404432760,1770136373945,-10000.01,7.996e-05,2]
[404432761,1770136374072,-10000.01,7.996e-05,2]
[404432762,1770136376674,-10000.01,7.996e-05,2]
[404432763,1770136376807,-10000.01,7.996e-05,2]
[404432764,1770136376983,-10000.01,7.996e-05,2]
[404432765,1770136377133,-10000.01,7.996e-05,2]
[404432766,1770136377276,-10000.01,7.996e-05,2]
[404432767,1770136377411,-10000.01,7.996e-05,2]
[404432770,1770136386262,-150.0,7.995e-05,2]
[404432771,1770136386296,-300.0,7.995e-05,2]
[404432772,1770136386402,-9100.01,7.996e-05,2]
[404432773,1770136386472,-10000.01,7.996e-05,2]
[404432774,1770136386573,-10000.01,7.996e-05,2]
[404432777,1770136388197,1000.0,7.7e-05,2]
[404432778,1770136389166,-482.883945,7.996e-05,2]
[404432779,1770136389244,-9034.24211,7.996e-05,2]
[404432780,1770136395867,-2100.0,7.8e-05,2]
[404432781,1770136395904,-2700.01,7.9e-05,2]
[404432782,1770136395957,-399.99,7.9e-05,2]
[404432783,1770136396294,-10000.01,7.996e-05,2]
[404432784,1770136396315,-10000.01,7.996e-05,2]
[404432785,1770136396423,-10000.01,7.996e-05,2]
[404432786,1770136396565,-10000.01,7.996e-05,2]
[404432787,1770136398705,-10000.01,7.996e-05,2]
[404432788,1770136398858,-10000.01,7.996e-05,2]
[404432789,1770136411473,-1039.76400801,7.996e-05,2]
[404432790,1770136411525,-7920.48198398,7.996e-05,2]
[404432791,1770136412501,-10000.01,7.996e-05,2]
[404432792,1770136412664,-10000.01,7.996e-05,2]
[404432793,1770136412804,-10000.01,7.996e-05,2]
[404432794,1770136423405,4100.0,7.7e-05,2]
[404432795,1770136432322,-1700.01,7.8e-05,2]
[404432796,1770136432362,-2499.99,7.8e-05,2]
[404432797,1770136435474,-4100.0,7.8e-05,2]
[404432798,1770136435523,-1800.01,7.9e-05,2]
[404432799,1770136438387,-10000.01,7.9e-05,2]
[404432800,1770136456845,1100.0,7.7e-05,2]
[404432801,1770136472519,-2200.0,7.8e-05,2]
[404432807,1770136538963,-300.5455,7.896e-05,2]
[404432808,1770136538996,-250.87076466,7.9e-05,2]
[404432814,1770136705170,195.87,7.047e-05,2]
[404432815,1770136705392,195.87,7.751e-05,2]
[404432816,1770136708488,-9608.27,7.845e-05,2]
[404432817,1770136708834,-10000.01,7.845e-05,2]
[404432818,1770136709142,-10000.01,7.845e-05,2]
[404432819,1770136709279,-10000.01,7.845e-05,2]
[404432820,1770136709779,-10000.01,7.845e-05,2]
[404432821,1770136709828,-10000.01,7.845e-05,2]
[404432822,1770136709854,-10000.01,7.845e-05,2]
[404432823,1770136709990,-10000.01,7.845e-05,2]
[404432824,1770136710126,-10000.01,7.845e-05,2]
[404432825,1770136714927,-356.75316661,7.844e-05,2]
[404432826,1770136714958,-416.86627831,7.844e-05,2]
[404432827,1770136715378,-648.85646346,7.844e-05,2]
[404432828,1770136715390,-174.89128942,7.844e-05,2]
[404432829,1770136715400,-500.0,7.844e-05,2]
[404432830,1770136715410,-500.0,7.844e-05,2]
[404432831,1770136715420,-500.0,7.844e-05,2]
[404432832,1770136715430,-500.0,7.844e-05,2]
[404432833,1770136715439,-500.0,7.844e-05,2]
[404432834,1770136715448,-500.0,7.844e-05,2]
[404432835,1770136715458,-500.0,7.844e-05,2]
[404432836,1770136715468,-500.0,7.844e-05,2]
[404432837,1770136715477,-500.0,7.844e-05,2]
[404432838,1770136715489,-500.0,7.844e-05,2]
[404432839,1770136715498,-2629.02335728,7.845e-05,2]
[404432849,1770136893319,5000.01,7.688e-05,2]
[404432850,1770136893344,3155.463,7.688e-05,2]
[404432851,1770136893388,735.8,7.688e-05,2]
[404432852,1770136913318,-162.4674,7.8e-05,2]
[404432853,1770136913343,-500.0,7.8e-05,2]
[404432854,1770136913372,-216.0,7.8e-05,2]
[404432855,1770136913395,-250.0,7.822e-05,2]
[404432856,1770136913423,-300.0,7.842e-05,2]
[404432857,1770136913447,-150.0,7.843e-05,2]
[404432858,1770136913471,-300.0,7.843e-05,2]
[404432859,1770136913494,-1200.0,7.843e-05,2]
[404432860,1770136913518,-300.0,7.843e-05,2]
[404432861,1770136913543,-1034.2,7.844e-05,2]
[404432862,1770136913570,-500.0,7.844e-05,2]
[404432863,1770136913596,-500.0,7.844e-05,2]
[404432864,1770136913623,-500.0,7.844e-05,2]
[404432865,1770136913650,-416.06979944,7.844e-05,2]
[404432866,1770136913675,-500.0,7.844e-05,2]
[404432867,1770136913702,-500.0,7.844e-05,2]
[404432868,1770136913728,-500.0,7.844e-05,2]
[404432869,1770136913755,-500.0,7.844e-05,2]
[404432870,1770136913782,-500.0,7.844e-05,2]
[404432871,1770136913810,-500.0,7.844e-05,2]
[404432872,1770136913836,-500.0,7.844e-05,2]
[404432873,1770136913862,-500.0,7.844e-05,2]
[404432874,1770136913890,-500.0,7.844e-05,2]
[404432875,1770136913917,-500.0,7.844e-05,2]
[404432876,1770136913944,-500.0,7.844e-05,2]
[404432877,1770136913971,-500.0,7.844e-05,2]
[404432878,1770136913997,-500.0,7.844e-05,2]
[404432879,1770136914024,-500.0,7.844e-05,2]
[404432880,1770136914050,-500.0,7.844e-05,2]
[404432881,1770136914076,-500.0,7.844e-05,2]
[404432882,1770136914102,-600.0,7.844e-05,2]
[404432883,1770136914128,-500.0,7.844e-05,2]
[404432884,1770136914154,-500.0,7.844e-05,2]
[404432885,1770136921859,150.0,7.844e-05,2]
[404432886,1770136922574,277.0,7.844e-05,2]
[404432887,1770136929098,151.0,7.842e-05,2]
[404432888,1770136947841,-150000.0,7.845e-05,2]
[404432890,1770136953155,-83493.26280056,7.845e-05,2]
[404432891,1770136962122,-200000.0,7.845e-05,2]
[404432892,1770136967913,-10000.0,7.845e-05,2]
[404432893,1770136973012,-20000.0,7.845e-05,2]
[404432895,1770136978616,-10000.0,7.845e-05,2]
[404432902,1770137019163,-200000.0,7.845e-05,2]
[404432905,1770137086914,-300.0,7.844e-05,2]
[404432906,1770137087190,-99700.0,7.845e-05,2]
[404432907,1770137091829,-50000.0,7.845e-05,2]
[404432908,1770137096847,237.3167,7.745e-05,2]
[404432909,1770137096938,-50000.0,7.845e-05,2]
[404432911,1770137103597,-1200.0,7.844e-05,2]
[404432912,1770137103630,-150.0,7.844e-05,2]
[404432913,1770137103662,-8650.0,7.845e-05,2]
[404432915,1770137108435,-3400.0,7.835e-05,2]
[404432916,1770137108466,-6600.0,7.845e-05,2]
[404432917,1770137113479,-10000.0,7.845e-05,2]
[404432919,1770137118825,-150000.0,7.845e-05,2]
[404432924,1770137245603,4600.0,7.7e-05,2]
[404432925,1770137252224,5000.01,7.745e-05,2]
[404432926,1770137252245,1726.6428,7.745e-05,2]
[404432931,1770137298558,10000.01,7.745e-05,2]
[404432932,1770137298582,10000.01,7.745e-05,2]
[404432933,1770137298606,10000.01,7.745e-05,2]
[404432934,1770137298631,10000.01,7.745e-05,2]
[404432935,1770137298656,10000.01,7.745e-05,2]
[404432936,1770137298680,10000.01,7.745e-05,2]
[404432937,1770137298704,10000.01,7.745e-05,2]
[404432938,1770137298730,10000.01,7.745e-05,2]
[404432939,1770137298754,10000.01,7.745e-05,2]
[404432940,1770137298778,10000.01,7.745e-05,2]
[404432941,1770137298803,3273.3672,7.745e-05,2]
[404432942,1770137298826,5000.01,7.745e-05,2]
[404432943,1770137298851,5000.01,7.745e-05,2]
[404432944,1770137298875,5000.01,7.745e-05,2]
[404432945,1770137298899,5000.01,7.745e-05,2]
[404432946,1770137298922,5000.01,7.745e-05,2]
[404432947,1770137298947,5000.01,7.745e-05,2]
[404432948,1770137298971,5000.01,7.745e-05,2]
[404432949,1770137298994,5000.01,7.745e-05,2]
[404432950,1770137299017,5000.01,7.745e-05,2]
[404432951,1770137307446,-2133.03816751,7.745e-05,2]
[404432952,1770137307528,-5000.01,7.745e-05,2]
[404432953,1770137307642,-5000.01,7.745e-05,2]
[404432954,1770137307742,-5000.01,7.745e-05,2]
[404432955,1770137307852,-5000.01,7.745e-05,2]
[404432956,1770137307966,-5000.01,7.745e-05,2]
[404432957,1770137308159,-1508.747,7.745e-05,2]
[404432958,1770137308183,-5000.01,7.745e-05,2]
[404432959,1770137308294,-10000.01,7.745e-05,2]
[404432960,1770137308315,-5000.01,7.745e-05,2]
[404432961,1770137308406,-10000.01,7.745e-05,2]
[404432962,1770137308423,-5000.01,7.745e-05,2]
[404432963,1770137308506,-10000.01,7.745e-05,2]
[404432964,1770137308769,-10000.01,7.745e-05,2]
[404432965,1770137308894,-10000.01,7.745e-05,2]
[404432966,1770137309036,-10000.01,7.745e-05,2]
[404432967,1770137309143,-10000.01,7.745e-05,2]
[404432968,1770137309267,-10000.01,7.745e-05,2]
[404432970,1770137309414,-10000.01,7.745e-05,2]
[404432971,1770137310144,-5000.01,7.745e-05,2]
[404432972,1770137311376,-10000.01,7.745e-05,2]
[404432973,1770137313505,-295.72472637,7.744e-05,2]
[404432974,1770137313533,-362.37069932,7.744e-05,2]
[404432975,1770137313770,-3683.81914862,7.745e-05,2]
[404432976,1770137313791,-5000.01,7.745e-05,2]
[404432977,1770137313823,-5000.01,7.745e-05,2]
[404432978,1770137313841,-5000.01,7.745e-05,2]
[404432979,1770137313858,-5000.01,7.745e-05,2]
[404432980,1770137313888,-5000.01,7.745e-05,2]
[404432981,1770137313916,-5000.01,7.745e-05,2]
[404432982,1770137314008,-5000.01,7.745e-05,2]
[404432983,1770137314136,-5000.01,7.745e-05,2]
[404432984,1770137314594,-10000.01,7.745e-05,2]
[404432985,1770137314793,-10000.01,7.745e-05,2]
[404432986,1770137314916,-10000.01,7.745e-05,2]
[404432987,1770137315039,-10000.01,7.745e-05,2]
[404432988,1770137315158,-10000.01,7.745e-05,2]
[404432989,1770137315265,-10000.01,7.745e-05,2]
[404432990,1770137315368,-10000.01,7.745e-05,2]
[404432991,1770137316025,-5000.01,7.745e-05,2]
[404432992,1770137319144,-5000.01,7.745e-05,2]
[404432993,1770137319329,-5000.01,7.745e-05,2]
[404432994,1770137319434,-5000.01,7.745e-05,2]
[404432995,1770137319562,-5000.01,7.745e-05,2]
[404432996,1770137319684,-5000.01,7.745e-05,2]
[404432997,1770137319790,-5000.01,7.745e-05,2]
[404432998,1770137319924,-5000.01,7.745e-05,2]
[404432999,1770137320467,-10000.01,7.745e-05,2]
[404433000,1770137322098,-500.0,7.744e-05,2]
[404433001,1770137322129,-500.0,7.744e-05,2]
[404433002,1770137322159,-500.0,7.744e-05,2]
[404433003,1770137322188,-151.60697994,7.744e-05,2]
[404433004,1770137322291,-1696.79604012,7.745e-05,2]
[404433005,1770137323580,-10000.01,7.745e-05,2]
[404433006,1770137323738,-10000.01,7.745e-05,2]
[404433007,1770137323848,-10000.01,7.745e-05,2]
[404433008,1770137323974,-10000.01,7.745e-05,2]
[404433009,1770137324082,-10000.01,7.745e-05,2]
[404433010,1770137324201,-10000.01,7.745e-05,2]
[404433011,1770137324317,-10000.01,7.745e-05,2]
[404433012,1770137325077,-5000.01,7.745e-05,2]
[404433013,1770137325171,-5000.01,7.745e-05,2]
[404433014,1770137325296,-5000.01,7.745e-05,2]
[404433015,1770137325421,-5000.01,7.745e-05,2]
[404433016,1770137325530,-5000.01,7.745e-05,2]
[404433017,1770137325654,-5000.01,7.745e-05,2]
[404433018,1770137325804,-5000.01,7.745e-05,2]
[404433019,1770137325925,-5000.01,7.745e-05,2]
[404433020,1770137329623,-10000.01,7.745e-05,2]
[404433021,1770137329760,-10000.01,7.745e-05,2]
[404433022,1770137331104,-5000.01,7.745e-05,2]
[404433023,1770137336833,-10000.01,7.745e-05,2]
[404433024,1770137336950,-10000.01,7.745e-05,2]
[404433025,1770137337222,-5000.01,7.745e-05,2]
[404433026,1770137340506,-5000.01,7.745e-05,2]
[404433027,1770137340710,-10000.01,7.745e-05,2]
[404433028,1770137340837,-5000.01,7.745e-05,2]
[404433029,1770137340897,-10000.01,7.745e-05,2]
[404433030,1770137340961,-5000.01,7.745e-05,2]
[404433031,1770137341011,-10000.01,7.745e-05,2]
[404433032,1770137341094,-5000.01,7.745e-05,2]
[404433033,1770137341118,-10000.01,7.745e-05,2]
[404433034,1770137341227,-5000.01,7.745e-05,2]
[404433035,1770137341241,-10000.01,7.745e-05,2]
[404433036,1770137341317,-5000.01,7.745e-05,2]
[404433037,1770137341469,-5000.01,7.745e-05,2]
[404433038,1770137343283,-5000.01,7.745e-05,2]
[404433040,1770137344456,-10000.01,7.745e-05,2]
[404433041,1770137344469,-10000.01,7.745e-05,2]
[404433042,1770137346425,-5000.01,7.745e-05,2]
[404433043,1770137346563,-5000.01,7.745e-05,2]
[404433044,1770137346677,-5000.01,7.745e-05,2]
[404433045,1770137346773,-5000.01,7.745e-05,2]
[404433046,1770137346874,-5000.01,7.745e-05,2]
[404433047,1770137347015,-5000.01,7.745e-05,2]
[404433048,1770137347063,-10000.01,7.745e-05,2]
[404433049,1770137347157,-10000.01,7.745e-05,2]
[404433050,1770137347181,-5000.01,7.745e-05,2]
[404433051,1770137347258,-10000.01,7.745e-05,2]
[404433052,1770137347352,-10000.01,7.745e-05,2]
[404433053,1770137347473,-10000.01,7.745e-05,2]
[404433054,1770137352384,-5000.01,7.745e-05,2]
[404433055,1770137352505,-5000.01,7.745e-05,2]
[404433056,1770137356112,-1000.0,7.744e-05,2]
[404433057,1770137356153,-8000.01,7.745e-05,2]
[404433058,1770137356213,-10000.01,7.745e-05,2]
[404433059,1770137356345,-10000.01,7.745e-05,2]
[404433060,1770137356795,-10000.01,7.745e-05,2]
[404433061,1770137358414,-5000.01,7.745e-05,2]
[404433062,1770137358516,-5000.01,7.745e-05,2]
[404433063,1770137361581,-5000.01,7.745e-05,2]
[404433064,1770137361819,-5000.01,7.745e-05,2]
[404433065,1770137362318,-10000.01,7.745e-05,2]
[404433066,1770137362442,-10000.01,7.745e-05,2]
[404433067,1770137362563,-10000.01,7.745e-05,2]
[404433068,1770137362667,-10000.01,7.745e-05,2]
[404433069,1770137364483,-5000.01,7.745e-05,2]
[404433070,1770137364595,-5000.01,7.745e-05,2]
[404433071,1770137365427,-10000.01,7.745e-05,2]
[404433072,1770137370461,-5000.01,7.745e-05,2]
[404433073,1770137370593,-5000.01,7.745e-05,2]
[404433074,1770137377458,-10000.01,7.745e-05,2]
[404433075,1770137377550,-10000.01,7.745e-05,2]
[404433076,1770137377645,-10000.01,7.745e-05,2]
[404433077,1770137377752,-10000.01,7.745e-05,2]
[404433078,1770137380771,-10000.01,7.745e-05,2]
[404433079,1770137384029,-10000.01,7.745e-05,2]
[404433080,1770137384136,-10000.01,7.745e-05,2]
[404433081,1770137384357,-10000.01,7.745e-05,2]
[404433082,1770137384472,-10000.01,7.745e-05,2]
[404433083,1770137384584,-10000.01,7.745e-05,2]
[404433084,1770137384713,-10000.01,7.745e-05,2]
[404433085,1770137384840,-10000.01,7.745e-05,2]
[404433086,1770137390043,-10000.01,7.745e-05,2]
[404433087,1770137393241,-318.87662267,7.744e-05,2]
[404433088,1770137393272,-500.0,7.744e-05,2]
[404433089,1770137393304,-500.0,7.744e-05,2]
[404433090,1770137393334,-500.0,7.744e-05,2]
[404433091,1770137393365,-500.0,7.744e-05,2]
[404433092,1770137393396,-500.0,7.744e-05,2]
[404433093,1770137393512,-4362.25675466,7.745e-05,2]
[404433094,1770137393540,-10000.01,7.745e-05,2]
[404433095,1770137393614,-470.0,7.744e-05,2]
[404433096,1770137393623,-9530.01,7.745e-05,2]
[404433097,1770137393652,-10000.01,7.745e-05,2]
[404433098,1770137393771,-10000.01,7.745e-05,2]
[404433099,1770137393894,-10000.01,7.745e-05,2]
[404433100,1770137394021,-10000.01,7.745e-05,2]
[404433101,1770137399461,-10000.01,7.745e-05,2]
[404433102,1770137399582,-10000.01,7.745e-05,2]
[404433103,1770137405402,-300.0,7.744e-05,2]
[404433104,1770137405433,-1200.0,7.744e-05,2]
[404433105,1770137405467,-300.0,7.744e-05,2]
[404433106,1770137405553,-6400.01,7.745e-05,2]
[404433107,1770137405572,-10000.01,7.745e-05,2]
[404433110,1770137408723,-10000.01,7.745e-05,2]
[404433111,1770137408988,-10000.01,7.745e-05,2]
[404433112,1770137409099,-10000.01,7.745e-05,2]
[404433113,1770137409229,-10000.01,7.745e-05,2]
[404433114,1770137409738,-10000.01,7.745e-05,2]
[404433115,1770137414600,-10000.01,7.745e-05,2]
[404433116,1770137414711,-10000.01,7.745e-05,2]
[404433117,1770137414809,-10000.01,7.745e-05,2]
[404433118,1770137417926,-10000.01,7.745e-05,2]
[404433119,1770137418198,-10000.01,7.745e-05,2]
[404433120,1770137418311,-10000.01,7.745e-05,2]
[404433121,1770137420804,-10000.01,7.745e-05,2]
[404433122,1770137420989,-10000.01,7.745e-05,2]
[404433123,1770137421182,-10000.01,7.745e-05,2]
[404433124,1770137423767,-10000.01,7.745e-05,2]
[404433125,1770137423889,-10000.01,7.745e-05,2]
[404433126,1770137424018,-10000.01,7.745e-05,2]
[404433127,1770137427093,-10000.01,7.745e-05,2]
[404433128,1770137427349,-10000.01,7.745e-05,2]
[404433129,1770137427455,-10000.01,7.745e-05,2]
[404433137,1770137431383,-55985.28018302,7.745e-05,2]
[404433139,1770137431396,-2058424.97550607,7.745e-05,2]
[404433142,1770137431405,-89306.5331,7.745e-05,2]
[404433145,1770137431416,-6726.6528,7.745e-05,2]
[404433146,1770137431426,-9200.0,7.8e-05,2]
[404433147,1770137431435,-150.0,7.844e-05,2]
[404433148,1770137431446,-250.0,7.845e-05,2]
[404433149,1770137431457,-4122.6247,7.896e-05,2]
[404433150,1770137431468,-609.94214869,7.9e-05,2]
[404433151,1770137431479,-13800.0,7.9e-05,2]
[404433152,1770137431488,-186.6211629,7.922e-05,2]
[404433153,1770137431497,-30135.960708,7.945e-05,2]
[404433154,1770137431507,-3699.93,8e-05,2]
[404433155,1770137431516,-299.99,8e-05,2]
[404433156,1770137431527,-9999.99,8e-05,2]
[404433157,1770137431537,-514.77,8e-05,2]
[404433158,1770137431547,-9999.99,8e-05,2]
[404433159,1770137431556,-999.99,8e-05,2]
[404433160,1770137431567,-18500.0,8e-05,2]
[404433161,1770137431576,-1034.2,8.118e-05,2]
[404433162,1770137431585,-150.99,8.219e-05,2]
[404433163,1770137431595,-150.99,8.219e-05,2]
[404433164,1770137431606,-6248.25,8.219e-05,2]
[404433165,1770137431615,-500.0,8.219e-05,2]
[404433166,1770137431624,-383.67400141,8.219e-05,2]
[404433167,1770137431634,-500.0,8.219e-05,2]
[404433168,1770137431644,-500.0,8.219e-05,2]
[404433169,1770137431657,-500.0,8.219e-05,2]
[404433170,1770137431667,-500.0,8.219e-05,2]
[404433171,1770137431677,-500.0,8.219e-05,2]
[404433172,1770137431687,-500.0,8.219e-05,2]
[404433173,1770137431696,-1034.2,8.392e-05,2]
[404433174,1770137431706,-195.87,8.456e-05,2]
[404433176,1770137431716,-2688.9,8.456e-05,2]
[404433178,1770137431727,-2102.59,8.456e-05,2]
[404433179,1770137431736,-1680.0,8.519e-05,2]
[404433181,1770137431745,-250.0,8.58e-05,2]
[404433184,1770137431755,-268.15037952,8.597e-05,2]
[404433186,1770137431764,-1103.0,8.622e-05,2]
[404433187,1770137431773,-255.0,8.629e-05,2]
[404433189,1770137431783,-250.0,8.63e-05,2]
[404433191,1770137431793,-622.0,8.645e-05,2]
[404433193,1770137431803,-1034.2,8.666e-05,2]
[404433195,1770137431812,-186.6211629,8.811e-05,2]
[404433197,1770137431821,-1600.0,8.837e-05,2]
[404433198,1770137431829,-1034.2,8.94e-05,2]
[404433199,1770137431839,-1103.0,9.076e-05,2]
[404433200,1770137431848,-204.69,9.108e-05,2]
[404433201,1770137431857,-3353.79,9.114e-05,2]
[404433202,1770137431866,-195.87,9.161e-05,2]
[404433203,1770137431875,-1034.2,9.214e-05,2]
[404433204,1770137431885,-2351.0,9.37e-05,2]
[404433205,1770137431895,-1034.2,9.488e-05,2]
[404433206,1770137431903,-433.0,9.491e-05,2]
[404433207,1770137431913,-1103.0,9.553e-05,2]
[404433208,1770137431922,-500.0,9.7e-05,2]
[404433209,1770137431931,-186.6211629,9.7e-05,2]
[404433210,1770137431940,-1034.2,9.762e-05,2]
[404433211,1770137431950,-1000.0,9.791e-05,2]
[404433212,1770137431961,-195.87,9.865e-05,2]
[404433213,1770137431970,-1600.0,9.941e-05,2]
[404433214,1770137431979,-500.0,9.974e-05,2]
[404433215,1770137431991,-200.0,0.0001,2]
[404433216,1770137432000,-151.0,0.0001,2]
[404433217,1770137432009,-151.0,0.0001,2]
[404433218,1770137432019,-151.0,0.0001,2]
[404433219,1770137432028,-151.0,0.0001,2]
[404433220,1770137432036,-151.0,0.0001,2]
[404433221,1770137432046,-151.0,0.0001,2]
[404433222,1770137432055,-151.0,0.0001,2]
[404433223,1770137432064,-151.0,0.0001,2]
[404433224,1770137432072,-151.0,0.0001,2]
[404433225,1770137432081,-151.0,0.0001,2]
[404433226,1770137432091,-151.0,0.0001,2]
[404433227,1770137432100,-500.0,0.0001,2]
[404433228,1770137432109,-500.0,0.0001,2]
[404433229,1770137432118,-151.0,0.0001,2]
[404433230,1770137432127,-500.0,0.0001,2]
[404433231,1770137432136,-151.0,0.0001,2]
[404433232,1770137432145,-500.0,0.0001,2]
[404433233,1770137432154,-151.0,0.0001,2]
[404433234,1770137432163,-500.0,0.0001,2]
[404433235,1770137432172,-500.0,0.0001,2]
[404433236,1770137432182,-151.0,0.0001,2]
[404433237,1770137432191,-500.0,0.0001,2]
[404433238,1770137432200,-500.0,0.0001,2]
[404433239,1770137432212,-151.0,0.0001,2]
[404433240,1770137432221,-500.0,0.0001,2]
[404433241,1770137432231,-500.0,0.0001,2]
[404433242,1770137432241,-151.0,0.0001,2]
[404433243,1770137432250,-500.0,0.0001,2]
[404433244,1770137432260,-500.0,0.0001,2]
[404433245,1770137432269,-151.0,0.0001,2]
[404433246,1770137432278,-500.0,0.0001,2]
[404433247,1770137432289,-500.0,0.0001,2]
[404433248,1770137432298,-151.0,0.0001,2]
[404433249,1770137432307,-500.0,0.0001,2]
[404433250,1770137432316,-500.0,0.0001,2]
[404433251,1770137432326,-151.0,0.0001,2]
[404433252,1770137432336,-500.0,0.0001,2]
[404433253,1770137432347,-500.0,0.0001,2]
[404433254,1770137432357,-500.0,0.0001,2]
[404433255,1770137432367,-500.0,0.0001,2]
[404433256,1770137432377,-500.0,0.0001,2]
[404433257,1770137432386,-500.0,0.0001,2]
[404433258,1770137432396,-500.0,0.0001,2]
[404433259,1770137432405,-200.0,0.0001,2]
[404433260,1770137432415,-164.01557148,0.0001,2]
[404433261,1770137432424,-164.01557148,0.0001,2]
[404433262,1770137432434,-151.0,0.0001,2]
[404433263,1770137432443,-150.01318901,0.0001,2]
[404433264,1770137432452,-151.0,0.0001,2]
[404433265,1770137432462,-151.0,0.0001,2]
[404433266,1770137432471,-151.0,0.0001,2]
[404433267,1770137432481,-151.0,0.0001,2]
[404433268,1770137432491,-151.0,0.0001,2]
[404433269,1770137432500,-151.0,0.0001,2]